[Event "*** SCC Grand Prix: Titled Tuesday Blitz"]
[Site "Chess.com"]
[Date "2020.06.02"]
[Round "5"]
[White "AcostaPablo"]
[Black "Lestofante90"]
[Result "0-1"]
[WhiteElo "2607"]
[BlackElo "2798"]
[TimeControl "180+1"]
[EndTime "10:59:54 PDT"]
[Termination "Lestofante90 won by checkmate"]

1. d4 {[%clk 0:03:00.9]} 1... Nf6 {[%clk 0:03:00.2]} 2. c4 {[%clk 0:02:56.3]}
2... g6 {[%clk 0:03:00.5]} 3. Nf3 {[%clk 0:02:52]} 3... Bg7 {[%clk 0:03:00.7]}
4. Nc3 {[%clk 0:02:52.4]} 4... O-O {[%clk 0:03:00.8]} 5. g3 {[%clk 0:02:49.8]}
5... d5 {[%clk 0:03:01.1]} 6. Bg2 {[%clk 0:02:50.5]} 6... dxc4 {[%clk
0:02:59.9]} 7. Ne5 {[%clk 0:02:45.4]} 7... Nfd7 {[%clk 0:02:59.5]} 8. Nxc4
{[%clk 0:02:44.3]} 8... Nb6 {[%clk 0:02:59.8]} 9. Nxb6 {[%clk 0:02:39.1]} 9...
axb6 {[%clk 0:03:00.7]} 10. e3 {[%clk 0:02:35.7]} 10... e5 {[%clk 0:02:57.6]}
11. d5 {[%clk 0:02:07.9]} 11... Nd7 {[%clk 0:02:52.3]} 12. O-O {[%clk
0:02:08.3]} 12... Nc5 {[%clk 0:02:50.4]} 13. b4 {[%clk 0:02:04.4]} 13... Nd7
{[%clk 0:02:37.1]} 14. e4 {[%clk 0:01:54.4]} 14... c6 {[%clk 0:02:33]} 15. Bb2
{[%clk 0:01:49.6]} 15... b5 {[%clk 0:02:32.5]} 16. Rc1 {[%clk 0:01:48.5]} 16...
Nb6 {[%clk 0:02:31.5]} 17. Qb3 {[%clk 0:01:46.6]} 17... Nc4 {[%clk 0:02:30]} 18.
Rfd1 {[%clk 0:01:47.1]} 18... Nxb2 {[%clk 0:02:29.7]} 19. Qxb2 {[%clk
0:01:46.7]} 19... Qb6 {[%clk 0:02:28.8]} 20. Qb3 {[%clk 0:01:42.4]} 20... Bg4
{[%clk 0:02:27.3]} 21. Rd3 {[%clk 0:01:38.4]} 21... Rfd8 {[%clk 0:01:33.4]} 22.
h3 {[%clk 0:01:37.8]} 22... Bd7 {[%clk 0:01:32.9]} 23. Rcd1 {[%clk 0:01:37.5]}
23... Be8 {[%clk 0:01:32.2]} 24. a4 {[%clk 0:01:33.1]} 24... bxa4 {[%clk
0:01:31.8]} 25. Nxa4 {[%clk 0:01:33.4]} 25... Qb5 {[%clk 0:01:29.1]} 26. Nc3
{[%clk 0:01:26.4]} 26... Qb6 {[%clk 0:01:29.4]} 27. Na4 {[%clk 0:01:15.8]} 27...
Qb5 {[%clk 0:01:29.1]} 28. Nc3 {[%clk 0:01:15.7]} 28... Qa6 {[%clk 0:01:27.4]}
29. Bf1 {[%clk 0:01:15.2]} 29... Qa7 {[%clk 0:01:16.3]} 30. dxc6 {[%clk
0:01:11.4]} 30... Rxd3 {[%clk 0:01:15.6]} 31. Bxd3 {[%clk 0:01:07.4]} 31... bxc6
{[%clk 0:01:06.2]} 32. Bc4 {[%clk 0:01:05.5]} 32... Bf8 {[%clk 0:01:02.9]} 33.
Rd3 {[%clk 0:00:51.3]} 33... Qb6 {[%clk 0:01:00.9]} 34. Rf3 {[%clk 0:00:51.5]}
34... Ra7 {[%clk 0:00:53.3]} 35. b5 {[%clk 0:00:49.2]} 35... Kg7 {[%clk
0:00:41.7]} 36. bxc6 {[%clk 0:00:39.2]} 36... Qxb3 {[%clk 0:00:42.6]} 37. Bxb3
{[%clk 0:00:39.1]} 37... Bxc6 {[%clk 0:00:43]} 38. Nd5 {[%clk 0:00:35.6]} 38...
Bc5 {[%clk 0:00:41.3]} 39. Rc3 {[%clk 0:00:35.1]} 39... Ra5 {[%clk 0:00:37.9]}
40. Kg2 {[%clk 0:00:34.3]} 40... Bd7 {[%clk 0:00:32.1]} 41. f4 {[%clk
0:00:33.4]} 41... exf4 {[%clk 0:00:30.2]} 42. gxf4 {[%clk 0:00:34.3]} 42... Be6
{[%clk 0:00:28.7]} 43. h4 {[%clk 0:00:33.3]} 43... Bd4 {[%clk 0:00:22.8]} 44.
Rc7 {[%clk 0:00:31.4]} 44... Ra3 {[%clk 0:00:21.2]} 45. Rb7 {[%clk 0:00:31.5]}
45... Ra7 {[%clk 0:00:15.3]} 46. Rb4 {[%clk 0:00:28.3]} 46... Bc5 {[%clk
0:00:15]} 47. Rb5 {[%clk 0:00:28.8]} 47... Bd4 {[%clk 0:00:14.7]} 48. Kf3 {[%clk
0:00:29.1]} 48... Ra3 {[%clk 0:00:07.8]} 49. Ke2 {[%clk 0:00:27.1]} 49... Bg1
{[%clk 0:00:07]} 50. h5 {[%clk 0:00:25.8]} 50... Ra7 {[%clk 0:00:06.9]} 51. hxg6
{[%clk 0:00:25.5]} 51... hxg6 {[%clk 0:00:07.8]} 52. Rb8 {[%clk 0:00:23.9]}
52... Bh2 {[%clk 0:00:06.5]} 53. Kf3 {[%clk 0:00:24.3]} 53... Ra3 {[%clk
0:00:03.3]} 54. Rb7 {[%clk 0:00:20.6]} 54... Bg1 {[%clk 0:00:02.5]} 55. Ke2
{[%clk 0:00:17.8]} 55... Ra7 {[%clk 0:00:02.4]} 56. Rb8 {[%clk 0:00:17]} 56...
Bh2 {[%clk 0:00:01.8]} 57. Kf3 {[%clk 0:00:17.4]} 57... Bxd5 {[%clk 0:00:02.7]}
58. Bxd5 {[%clk 0:00:17]} 58... Rd7 {[%clk 0:00:03.4]} 59. Rb6 {[%clk
0:00:15.6]} 59... g5 {[%clk 0:00:03.6]} 60. fxg5 {[%clk 0:00:15.3]} 60... Be5
{[%clk 0:00:04.1]} 61. Kg4 {[%clk 0:00:15.8]} 61... Bd4 {[%clk 0:00:05]} 62. Kf5
{[%clk 0:00:16.4]} 62... Bxb6 {[%clk 0:00:04.6]} 63. Bc6 {[%clk 0:00:17]} 63...
Re7 {[%clk 0:00:04.8]} 64. Bd5 {[%clk 0:00:17.9]} 64... Bd4 {[%clk 0:00:04.7]}
65. Bc6 {[%clk 0:00:18.4]} 65... Re5+ {[%clk 0:00:05.2]} 66. Kf4 {[%clk
0:00:19]} 66... Rc5 {[%clk 0:00:05.9]} 67. Bd5 {[%clk 0:00:19.5]} 67... Bc3
{[%clk 0:00:06.5]} 68. Ke3 {[%clk 0:00:19.6]} 68... Bb2 {[%clk 0:00:06.3]} 69.
Kf4 {[%clk 0:00:19.7]} 69... Bc1+ {[%clk 0:00:07.2]} 70. Kf5 {[%clk 0:00:20]}
70... Rc2 {[%clk 0:00:07.1]} 71. Kg4 {[%clk 0:00:19.3]} 71... Rf2 {[%clk
0:00:08]} 72. Kg3 {[%clk 0:00:19.4]} 72... Rf1 {[%clk 0:00:08]} 73. Kg4 {[%clk
0:00:19.7]} 73... Rg1+ {[%clk 0:00:08.1]} 74. Kf5 {[%clk 0:00:20.1]} 74... Rxg5#
{[%clk 0:00:09]} 0-1

[Event "*** SCC Grand Prix: Titled Tuesday Blitz"]
[Site "Chess.com"]
[Date "2020.06.02"]
[Round "5"]
[White "InitiatingASC"]
[Black "nonsopolo1"]
[Result "1-0"]
[WhiteElo "2398"]
[BlackElo "2238"]
[TimeControl "180+1"]
[EndTime "10:59:54 PDT"]
[Termination "InitiatingASC won on time"]

1. Nf3 {[%clk 0:02:53.3]} 1... c5 {[%clk 0:02:55.5]} 2. b3 {[%clk 0:02:52.9]}
2... Nc6 {[%clk 0:02:53.1]} 3. Bb2 {[%clk 0:02:53.5]} 3... Nf6 {[%clk
0:02:49.7]} 4. e3 {[%clk 0:02:54]} 4... g6 {[%clk 0:02:49.5]} 5. c4 {[%clk
0:02:52.7]} 5... Bg7 {[%clk 0:02:49.4]} 6. Be2 {[%clk 0:02:52.6]} 6... O-O
{[%clk 0:02:49.5]} 7. O-O {[%clk 0:02:52.6]} 7... d6 {[%clk 0:02:42.7]} 8. d3
{[%clk 0:02:52.1]} 8... a6 {[%clk 0:02:42.6]} 9. Nbd2 {[%clk 0:02:51.1]} 9...
Rb8 {[%clk 0:02:42.1]} 10. a3 {[%clk 0:02:43.1]} 10... b5 {[%clk 0:02:41.4]} 11.
cxb5 {[%clk 0:02:43.7]} 11... axb5 {[%clk 0:02:41.8]} 12. Qc2 {[%clk 0:02:43.6]}
12... Bb7 {[%clk 0:02:39.2]} 13. Rfe1 {[%clk 0:02:36.4]} 13... Ba8 {[%clk
0:02:37.3]} 14. Nf1 {[%clk 0:02:35.1]} 14... h6 {[%clk 0:02:33.4]} 15. N3d2
{[%clk 0:02:33.6]} 15... Ne5 {[%clk 0:02:29.2]} 16. Ng3 {[%clk 0:02:30.1]} 16...
Qb6 {[%clk 0:02:16.9]} 17. Bf1 {[%clk 0:02:21.4]} 17... h5 {[%clk 0:02:15.4]}
18. Reb1 {[%clk 0:02:17.2]} 18... h4 {[%clk 0:02:07.6]} 19. Bxe5 {[%clk
0:02:13.2]} 19... dxe5 {[%clk 0:02:05.9]} 20. Nge4 {[%clk 0:02:13.5]} 20... Rfc8
{[%clk 0:01:51.1]} 21. a4 {[%clk 0:02:06]} 21... Nxe4 {[%clk 0:01:34]} 22. dxe4
{[%clk 0:01:58.2]} 22... b4 {[%clk 0:01:28.2]} 23. Nc4 {[%clk 0:01:42.8]} 23...
Qf6 {[%clk 0:01:26.4]} 24. Rd1 {[%clk 0:01:37]} 24... Qg5 {[%clk 0:01:21.8]} 25.
Rd2 {[%clk 0:01:09.3]} 25... f5 {[%clk 0:01:21.4]} 26. exf5 {[%clk 0:01:01.1]}
26... gxf5 {[%clk 0:01:00.3]} 27. Rad1 {[%clk 0:01:00.8]} 27... h3 {[%clk
0:00:41]} 28. f3 {[%clk 0:00:41.8]} 28... Bxf3 {[%clk 0:00:37.3]} 29. Re1 {[%clk
0:00:34.6]} 29... Be4 {[%clk 0:00:35.5]} 30. Qd1 {[%clk 0:00:28.8]} 30... hxg2
{[%clk 0:00:32]} 31. Bd3 {[%clk 0:00:19.3]} 31... Ba8 {[%clk 0:00:20.2]} 32. Rf2
{[%clk 0:00:19.3]} 32... f4 {[%clk 0:00:17.5]} 33. e4 {[%clk 0:00:15.5]} 33...
Rd8 {[%clk 0:00:15.1]} 34. Rxg2 {[%clk 0:00:14.7]} 34... Qh6 {[%clk 0:00:13.4]}
35. Qf3 {[%clk 0:00:13.6]} 35... Rd4 {[%clk 0:00:11.5]} 36. Nxe5 {[%clk
0:00:12.9]} 36... Rbd8 {[%clk 0:00:09.9]} 37. Bc4+ {[%clk 0:00:13]} 37... Kh7
{[%clk 0:00:07.9]} 38. Nf7 {[%clk 0:00:12.3]} 38... Qh4 {[%clk 0:00:06.6]} 39.
Rf1 {[%clk 0:00:10]} 39... Rf8 {[%clk 0:00:05]} 40. Ng5+ {[%clk 0:00:10]} 40...
Kh8 {[%clk 0:00:05.2]} 41. Rg4 {[%clk 0:00:08.3]} 41... Qh6 {[%clk 0:00:05.1]}
42. Qf2 {[%clk 0:00:07.3]} 42... Rd2 {[%clk 0:00:02.9]} 43. Rh4 {[%clk
0:00:06.8]} 43... Rxf2 {[%clk 0:00:02.7]} 44. Rxh6+ {[%clk 0:00:07]} 44... Bxh6
{[%clk 0:00:03.2]} 45. Ne6 {[%clk 0:00:05.1]} 45... Rg8+ {[%clk 0:00:03.1]} 46.
Kxf2 {[%clk 0:00:05.2]} 46... Bxe4 {[%clk 0:00:02]} 47. Rg1 {[%clk 0:00:04.4]}
47... Rxg1 {[%clk 0:00:01.8]} 48. Kxg1 {[%clk 0:00:04.8]} 48... f3 {[%clk
0:00:02.2]} 49. Kf2 {[%clk 0:00:05]} 49... Bf4 {[%clk 0:00:02.3]} 50. Nxc5
{[%clk 0:00:04.8]} 50... Bxh2 {[%clk 0:00:02.2]} 51. Nxe4 {[%clk 0:00:04.9]}
51... Be5 {[%clk 0:00:01.7]} 52. Kxf3 {[%clk 0:00:04.9]} 52... Bd4 {[%clk
0:00:01.7]} 53. Ng5 {[%clk 0:00:04.6]} 53... Kg7 {[%clk 0:00:02.6]} 54. Ne6+
{[%clk 0:00:04.7]} 54... Kf6 {[%clk 0:00:03.5]} 55. Nxd4 {[%clk 0:00:05.6]}
55... e5 {[%clk 0:00:04.2]} 56. Nc6 {[%clk 0:00:05.5]} 56... e4+ {[%clk
0:00:03.9]} 57. Kxe4 {[%clk 0:00:05.4]} 1-0

[Event "*** SCC Grand Prix: Titled Tuesday Blitz"]
[Site "Chess.com"]
[Date "2020.06.02"]
[Round "5"]
[White "doctorcristian"]
[Black "TERMINATOR_PC"]
[Result "0-1"]
[WhiteElo "2299"]
[BlackElo "2475"]
[TimeControl "180+1"]
[EndTime "10:59:58 PDT"]
[Termination "TERMINATOR_PC won on time"]

1. d4 {[%clk 0:02:58.2]} 1... Nf6 {[%clk 0:03:00.7]} 2. Nc3 {[%clk 0:02:56]}
2... d5 {[%clk 0:03:00.3]} 3. Bf4 {[%clk 0:02:55.4]} 3... a6 {[%clk 0:02:57.3]}
4. e3 {[%clk 0:02:55.1]} 4... b5 {[%clk 0:02:57.5]} 5. a3 {[%clk 0:02:47.4]}
5... e6 {[%clk 0:02:54]} 6. g4 {[%clk 0:02:46.7]} 6... c5 {[%clk 0:02:53.9]} 7.
g5 {[%clk 0:02:46.9]} 7... Nfd7 {[%clk 0:02:52.5]} 8. Nf3 {[%clk 0:02:46.5]}
8... Nc6 {[%clk 0:02:52.3]} 9. h4 {[%clk 0:02:46.3]} 9... Bb7 {[%clk 0:02:50.2]}
10. h5 {[%clk 0:02:46.6]} 10... Rc8 {[%clk 0:02:48.7]} 11. Bh3 {[%clk
0:02:44.2]} 11... g6 {[%clk 0:02:21.5]} 12. Bg4 {[%clk 0:02:38.7]} 12... Bg7
{[%clk 0:02:08]} 13. hxg6 {[%clk 0:02:37.1]} 13... hxg6 {[%clk 0:02:07.9]} 14.
Rxh8+ {[%clk 0:02:37.3]} 14... Bxh8 {[%clk 0:02:08.8]} 15. Ne2 {[%clk
0:02:36.1]} 15... Qb6 {[%clk 0:02:04.9]} 16. Qd2 {[%clk 0:02:32.5]} 16... a5
{[%clk 0:01:56.4]} 17. Kf1 {[%clk 0:02:29.8]} 17... b4 {[%clk 0:01:51.2]} 18.
axb4 {[%clk 0:02:27.3]} 18... axb4 {[%clk 0:01:50.2]} 19. Kg2 {[%clk 0:02:26.8]}
19... Qb5 {[%clk 0:01:18.4]} 20. Ng3 {[%clk 0:02:00.2]} 20... Bg7 {[%clk
0:00:39.4]} 21. Bd6 {[%clk 0:01:26]} 21... Bf8 {[%clk 0:00:37.8]} 22. Bxf8
{[%clk 0:01:25.3]} 22... Kxf8 {[%clk 0:00:35.2]} 23. Rh1 {[%clk 0:01:22.7]}
23... Qc4 {[%clk 0:00:27.1]} 24. Rh8+ {[%clk 0:01:14.4]} 24... Ke7 {[%clk
0:00:26.7]} 25. Rxc8 {[%clk 0:01:14.7]} 25... Bxc8 {[%clk 0:00:27.6]} 26. Ne2
{[%clk 0:01:11.8]} 26... Ba6 {[%clk 0:00:26.2]} 27. Nf4 {[%clk 0:01:11.8]} 27...
Qf1+ {[%clk 0:00:26.2]} 28. Kg3 {[%clk 0:01:11.1]} 28... cxd4 {[%clk 0:00:24.2]}
29. exd4 {[%clk 0:01:09.4]} 29... Nb6 {[%clk 0:00:22.3]} 30. Ne5 {[%clk
0:01:05.8]} 30... Nxe5 {[%clk 0:00:21.7]} 31. Qxb4+ {[%clk 0:01:04.6]} 31... Ke8
{[%clk 0:00:18.8]} 32. dxe5 {[%clk 0:01:00.6]} 32... Qg1+ {[%clk 0:00:16.6]} 33.
Ng2 {[%clk 0:01:00.4]} 33... Bf1 {[%clk 0:00:14.3]} 34. Bf3 {[%clk 0:00:54.5]}
34... Nd7 {[%clk 0:00:13.4]} 35. Qd6 {[%clk 0:00:39.8]} 35... Bxg2 {[%clk
0:00:12.9]} 36. Bxg2 {[%clk 0:00:39.2]} 36... Qe1 {[%clk 0:00:13.2]} 37. b4
{[%clk 0:00:27.1]} 37... Qc3+ {[%clk 0:00:13.3]} 38. Bf3 {[%clk 0:00:26.1]}
38... Nxe5 {[%clk 0:00:13.1]} 39. Qb8+ {[%clk 0:00:23]} 39... Ke7 {[%clk
0:00:13.6]} 40. Qa7+ {[%clk 0:00:20.3]} 40... Nd7 {[%clk 0:00:08.1]} 41. b5
{[%clk 0:00:16.6]} 41... Qe5+ {[%clk 0:00:05.6]} 42. Kh3 {[%clk 0:00:16.1]}
42... Qf5+ {[%clk 0:00:05.2]} 43. Bg4 {[%clk 0:00:14.2]} 43... Qxc2 {[%clk
0:00:05.4]} 44. b6 {[%clk 0:00:14.1]} 44... Qb3+ {[%clk 0:00:05.8]} 45. f3
{[%clk 0:00:13]} 45... Qxb6 {[%clk 0:00:06.7]} 46. Qb8 {[%clk 0:00:12.6]} 46...
Qd8 {[%clk 0:00:05.3]} 47. Qf4 {[%clk 0:00:12.2]} 47... Qb8 {[%clk 0:00:04.7]}
48. Qe3 {[%clk 0:00:11.4]} 48... Qb4 {[%clk 0:00:04.2]} 49. f4 {[%clk
0:00:11.3]} 49... Nc5 {[%clk 0:00:03.9]} 50. Qe5 {[%clk 0:00:10.6]} 50... Qb3+
{[%clk 0:00:02.7]} 51. Kh4 {[%clk 0:00:10.7]} 51... Nd7 {[%clk 0:00:02.7]} 52.
Qd4 {[%clk 0:00:09.1]} 52... Qc4 {[%clk 0:00:02.9]} 53. Qe3 {[%clk 0:00:08.3]}
53... d4 {[%clk 0:00:03.4]} 54. Qe4 {[%clk 0:00:07.1]} 54... Qc5 {[%clk
0:00:03.8]} 55. Be2 {[%clk 0:00:06.7]} 55... Ke8 {[%clk 0:00:02.9]} 56. Bd3
{[%clk 0:00:06.4]} 56... Ke7 {[%clk 0:00:02.9]} 57. Kg3 {[%clk 0:00:05.6]} 57...
Qb6 {[%clk 0:00:03.2]} 58. Qe2 {[%clk 0:00:04.4]} 58... Kd6 {[%clk 0:00:03.7]}
59. Qc2 {[%clk 0:00:04.3]} 59... Nc5 {[%clk 0:00:04.2]} 60. Qc4 {[%clk
0:00:04.1]} 60... Nxd3 {[%clk 0:00:04.6]} 61. Qxd3 {[%clk 0:00:04.5]} 61... Qc5
{[%clk 0:00:05.3]} 62. Kh4 {[%clk 0:00:04.8]} 62... Qd5 {[%clk 0:00:05.1]} 63.
Qa6+ {[%clk 0:00:04.8]} 63... Ke7 {[%clk 0:00:05.6]} 64. Qb7+ {[%clk 0:00:04.8]}
64... Qxb7 {[%clk 0:00:04.9]} 0-1

[Event "*** SCC Grand Prix: Titled Tuesday Blitz"]
[Site "Chess.com"]
[Date "2020.06.02"]
[Round "5"]
[White "Berant"]
[Black "rynos0411"]
[Result "1-0"]
[WhiteElo "2330"]
[BlackElo "2434"]
[TimeControl "180+1"]
[EndTime "11:00:01 PDT"]
[Termination "Berant won by resignation"]

1. e4 {[%clk 0:03:00.9]} 1... c6 {[%clk 0:02:59.8]} 2. d4 {[%clk 0:03:00.5]}
2... d5 {[%clk 0:03:00.4]} 3. Nd2 {[%clk 0:02:59.7]} 3... dxe4 {[%clk
0:03:00.4]} 4. Nxe4 {[%clk 0:03:00.1]} 4... Nf6 {[%clk 0:03:01.3]} 5. Ng3 {[%clk
0:02:59.5]} 5... h5 {[%clk 0:03:00.1]} 6. Bd3 {[%clk 0:02:59]} 6... Qxd4 {[%clk
0:02:53.8]} 7. Nf3 {[%clk 0:02:56.1]} 7... Qd8 {[%clk 0:02:50.3]} 8. Qe2 {[%clk
0:02:52.6]} 8... h4 {[%clk 0:02:45.7]} 9. Ne4 {[%clk 0:02:51.7]} 9... Nxe4
{[%clk 0:02:43.6]} 10. Bxe4 {[%clk 0:02:52.5]} 10... Nd7 {[%clk 0:02:44.1]} 11.
Bd2 {[%clk 0:02:49.3]} 11... Nf6 {[%clk 0:02:44.2]} 12. Bd3 {[%clk 0:02:49.3]}
12... Bg4 {[%clk 0:02:41.9]} 13. O-O-O {[%clk 0:02:48.7]} 13... e6 {[%clk
0:02:41.9]} 14. Kb1 {[%clk 0:02:48.4]} 14... Be7 {[%clk 0:02:40]} 15. Bc3 {[%clk
0:02:46.9]} 15... Qb6 {[%clk 0:02:31.2]} 16. h3 {[%clk 0:02:46.1]} 16... Bxf3
{[%clk 0:02:25.8]} 17. Qxf3 {[%clk 0:02:47]} 17... O-O-O {[%clk 0:02:24.6]} 18.
Rhe1 {[%clk 0:02:34.1]} 18... Rhg8 {[%clk 0:02:08.7]} 19. a4 {[%clk 0:02:28.7]}
19... Nd5 {[%clk 0:02:07.6]} 20. Bh7 {[%clk 0:01:49.3]} 20... Rh8 {[%clk
0:02:00.2]} 21. a5 {[%clk 0:01:41.7]} 21... Qc7 {[%clk 0:01:34.2]} 22. Be4
{[%clk 0:01:27.3]} 22... Nxc3+ {[%clk 0:01:24.4]} 23. Qxc3 {[%clk 0:01:28.2]}
23... Bf6 {[%clk 0:01:24.4]} 24. Qb3 {[%clk 0:01:25.3]} 24... Qxa5 {[%clk
0:01:20]} 25. c3 {[%clk 0:01:10.6]} 25... Qc5 {[%clk 0:01:15.7]} 26. f3 {[%clk
0:01:06.4]} 26... Rxd1+ {[%clk 0:00:51.7]} 27. Rxd1 {[%clk 0:01:07.3]} 27... Rd8
{[%clk 0:00:51.8]} 28. Rxd8+ {[%clk 0:01:06.7]} 28... Bxd8 {[%clk 0:00:50.9]}
29. Qd1 {[%clk 0:01:04]} 29... Bc7 {[%clk 0:00:41.5]} 30. Qd2 {[%clk 0:00:57.1]}
30... g5 {[%clk 0:00:39]} 31. Qe2 {[%clk 0:00:38.2]} 31... Bf4 {[%clk
0:00:35.8]} 32. Qc2 {[%clk 0:00:28.8]} 32... Kc7 {[%clk 0:00:30.2]} 33. Qa4
{[%clk 0:00:28]} 33... Qg1+ {[%clk 0:00:20]} 34. Ka2 {[%clk 0:00:27.8]} 34...
Be3 {[%clk 0:00:18.3]} 35. Qa5+ {[%clk 0:00:27]} 35... Bb6 {[%clk 0:00:15.5]}
36. Qe5+ {[%clk 0:00:27.4]} 36... Kd7 {[%clk 0:00:15.8]} 37. Qf6 {[%clk
0:00:27.5]} 37... Ke8 {[%clk 0:00:11.7]} 38. Qxg5 {[%clk 0:00:26.7]} 38... Qc5
{[%clk 0:00:10.9]} 39. Qg8+ {[%clk 0:00:25.8]} 39... Ke7 {[%clk 0:00:11]} 40.
Qg7 {[%clk 0:00:22.1]} 40... Qa5+ {[%clk 0:00:10.5]} 41. Kb1 {[%clk 0:00:22.4]}
41... Qc5 {[%clk 0:00:07.5]} 42. Bg6 {[%clk 0:00:18.6]} 42... Qg1+ {[%clk
0:00:03.2]} 43. Ka2 {[%clk 0:00:19]} 43... Qc5 {[%clk 0:00:02.6]} 44. Qxf7+
{[%clk 0:00:19.1]} 44... Kd6 {[%clk 0:00:03.5]} 45. Qf4+ {[%clk 0:00:19]} 45...
Qe5 {[%clk 0:00:03.8]} 46. Qd2+ {[%clk 0:00:15.9]} 46... Kc7 {[%clk 0:00:03.8]}
47. Be8 {[%clk 0:00:14]} 47... Be3 {[%clk 0:00:03.9]} 48. Qd7+ {[%clk
0:00:13.8]} 48... Kb6 {[%clk 0:00:04.8]} 49. Qd3 {[%clk 0:00:13.8]} 49... Bc5
{[%clk 0:00:04.6]} 50. b4 {[%clk 0:00:13]} 50... Bd6 {[%clk 0:00:04.5]} 51. Kb3
{[%clk 0:00:12.7]} 51... Bc7 {[%clk 0:00:03.9]} 52. Qd4+ {[%clk 0:00:11]} 52...
Qxd4 {[%clk 0:00:04]} 53. cxd4 {[%clk 0:00:11.9]} 53... Bd6 {[%clk 0:00:03.6]}
54. Bd7 {[%clk 0:00:11.7]} 54... Kc7 {[%clk 0:00:04]} 55. Bxe6 {[%clk
0:00:11.6]} 55... Kd8 {[%clk 0:00:04.9]} 56. Bg4 {[%clk 0:00:11.6]} 56... Ke7
{[%clk 0:00:04.9]} 57. Kc4 {[%clk 0:00:12]} 57... b6 {[%clk 0:00:05.8]} 58. Bc8
{[%clk 0:00:11.9]} 58... Kd8 {[%clk 0:00:05.1]} 59. Bb7 {[%clk 0:00:11.9]} 59...
Kc7 {[%clk 0:00:06]} 60. Ba6 {[%clk 0:00:12.3]} 60... Bg3 {[%clk 0:00:05.7]} 61.
d5 {[%clk 0:00:11.7]} 61... cxd5+ {[%clk 0:00:05.4]} 62. Kxd5 {[%clk 0:00:12.6]}
62... Be1 {[%clk 0:00:06.1]} 63. Kc4 {[%clk 0:00:11.2]} 63... Bg3 {[%clk
0:00:05.9]} 64. Bb5 {[%clk 0:00:11.3]} 64... Kd6 {[%clk 0:00:06.2]} 65. Be8
{[%clk 0:00:11.3]} 65... Bf2 {[%clk 0:00:06.6]} 66. Kb5 {[%clk 0:00:11.1]} 66...
Be1 {[%clk 0:00:06]} 67. Bg6 {[%clk 0:00:10.2]} 67... Bd2 {[%clk 0:00:04.8]} 68.
Kc4 {[%clk 0:00:07.1]} 68... Ke5 {[%clk 0:00:04.9]} 69. b5 {[%clk 0:00:06.2]}
69... Kf4 {[%clk 0:00:04.9]} 70. Kd3 {[%clk 0:00:05.9]} 70... Kg3 {[%clk
0:00:05.3]} 71. Kxd2 {[%clk 0:00:05.8]} 71... Kxg2 {[%clk 0:00:05.9]} 72. f4
{[%clk 0:00:06.3]} 72... Kg3 {[%clk 0:00:06.1]} 73. f5 {[%clk 0:00:06.6]} 73...
Kxh3 {[%clk 0:00:06.6]} 74. f6 {[%clk 0:00:07.2]} 74... Kg2 {[%clk 0:00:07.5]}
75. f7 {[%clk 0:00:07.9]} 75... h3 {[%clk 0:00:07.8]} 76. f8=Q {[%clk
0:00:07.9]} 76... h2 {[%clk 0:00:08.7]} 77. Be4+ {[%clk 0:00:07.9]} 1-0